[Event "9e Open International de Porticcio"]
[Site "Porticcio, France"]
[Date "2024.07.05"]
[Round "9.8"]
[White "Kuru, Atilla"]
[Black "Terrieux, Kevin"]
[Result "1/2-1/2"]
[TimeControl "1h30+30s/move"]
[WhiteElo "2314"]
[BlackElo "2408"]

1. e4 {[%clk 01:23:12]} {[%emt 00:01:20]} e5 {[%clk 01:22:33]} {[%emt
00:08:57]} 2. Nf3 {[%clk 01:22:41]} {[%emt 00:01:01]} Nc6 {[%clk 01:23:00]}
{[%emt 00:00:03]} 3. Bb5 {[%clk 01:21:54]} {[%emt 00:01:16]} a6 {[%clk
01:23:15]} {[%emt 00:00:16]} 4. Bxc6 {[%clk 01:20:47]} {[%emt 00:01:37]} dxc6
{[%clk 01:23:41]} {[%emt 00:00:04]} 5. Nc3 {[%clk 01:21:01]} {[%emt 00:00:16]}
Bg4 {[%clk 00:53:02]} {[%emt 00:31:09]} 6. h3 {[%clk 01:21:09]} Bxf3 {[%clk
00:53:14]} {[%emt 00:00:39]} 7. Qxf3 {[%clk 01:21:36]} Qf6 {[%clk 00:50:35]}
{[%emt 00:03:11]} 8. Qg3 {[%emt 00:03:04]} Ne7 {[%clk 00:48:49]} 9. d3 {[%clk
01:21:23]} {[%emt 00:00:26]} Ng6 {[%clk 00:48:59]} {[%emt 00:00:20]} 10. Bg5
{[%clk 01:21:16]} {[%emt 00:00:37]} Qe6 {[%clk 00:48:20]} {[%emt 00:01:09]} 11.
Qg4 {[%clk 01:17:59]} {[%emt 00:03:47]} Qd7 {[%clk 00:31:10]} {[%emt 00:17:40]}
12. O-O-O {[%clk 01:17:41]} {[%emt 00:00:49]} Bc5 {[%clk 00:25:43]} {[%emt
00:05:57]} 13. Be3 {[%clk 01:17:47]} {[%emt 00:00:24]} Qxg4 {[%emt 00:00:34]}
14. hxg4 {[%emt 00:00:06]} Bxe3+ {[%clk 00:25:24]} {[%emt 00:00:09]} 15. fxe3
{[%clk 01:18:12]} {[%emt 00:00:04]} f6 {[%clk 00:20:26]} {[%emt 00:05:28]} 16.
Ne2 {[%clk 01:18:33]} {[%emt 00:00:09]} c5 {[%clk 00:15:16]} {[%emt 00:05:40]}
17. Ng3 {[%clk 01:18:19]} {[%emt 00:00:43]} Nf8 {[%clk 00:15:12]} {[%emt
00:00:35]} 18. d4 {[%clk 01:17:10]} {[%emt 00:01:39]} cxd4 {[%clk 00:15:29]}
{[%emt 00:00:14]} 19. exd4 {[%clk 01:17:34]} {[%emt 00:00:05]} exd4 {[%clk
00:15:46]} {[%emt 00:00:13]} 20. Rxd4 {[%clk 01:17:59]} {[%emt 00:00:05]} Ne6
{[%clk 00:16:08]} {[%emt 00:00:08]} 21. Rd2 {[%clk 01:14:59]} {[%emt 00:03:30]}
Rd8 {[%clk 00:15:47]} {[%emt 00:00:52]} 22. Rxd8+ {[%clk 01:14:33]} {[%emt
00:00:57]} Kxd8 {[%clk 00:16:07]} {[%emt 00:00:10]} 23. Kd2 {[%clk 01:12:56]}
{[%emt 00:02:07]} Ke7 {[%clk 00:12:34]} {[%emt 00:04:02]} 24. Ke3 {[%clk
01:13:09]} {[%emt 00:00:16]} Kf7 {[%clk 00:12:36]} {[%emt 00:00:28]} 25. Nf5
{[%clk 01:12:39]} {[%emt 00:01:00]} g6 {[%clk 00:12:22]} {[%emt 00:00:44]} 26.
Nh4 {[%clk 01:11:01]} {[%emt 00:02:09]} Re8 {[%clk 00:09:55]} {[%emt 00:02:57]}
27. Nf3 {[%clk 01:11:18]} {[%emt 00:00:13]} Kg7 {[%clk 00:10:09]} {[%emt
00:00:16]} 28. Rd1 {[%clk 01:11:29]} {[%emt 00:00:19]} Re7 {[%clk 00:10:27]}
{[%emt 00:00:12]} 29. Rd5 {[%clk 01:10:41]} {[%emt 00:01:17]} Kf7 {[%clk
00:10:30]} {[%emt 00:00:27]} 30. b4 {[%clk 01:10:41]} {[%emt 00:00:31]} c6
{[%clk 00:09:27]} {[%emt 00:01:33]} 31. Rd6 {[%clk 01:10:48]} {[%emt 00:00:22]}
Nc7 {[%clk 00:09:03]} {[%emt 00:00:54]} 32. c4 {[%clk 01:11:14]} {[%emt
00:00:05]} h6 {[%clk 00:06:49]} {[%emt 00:02:44]} 33. a3 {[%clk 01:10:01]}
{[%emt 00:01:44]} Re6 {[%clk 00:04:43]} {[%emt 00:02:35]} 34. Rd8 {[%clk
01:10:25]} {[%emt 00:00:06]} Re8 {[%clk 00:05:01]} {[%emt 00:00:12]} 35. Rd1
{[%clk 01:10:20]} {[%emt 00:00:35]} Re7 {[%clk 00:04:36]} {[%emt 00:00:55]} 36.
Rh1 {[%clk 01:10:15]} {[%emt 00:00:35]} Kg7 {[%clk 00:05:00]} {[%emt 00:00:07]}
37. Rf1 {[%clk 01:09:39]} {[%emt 00:01:05]} Ne6 {[%clk 00:04:37]} {[%emt
00:00:53]} 38. Rd1 {[%clk 01:10:05]} {[%emt 00:00:04]} Kf7 {[%clk 00:04:39]}
{[%emt 00:00:28]} 39. Rd6 {[%clk 01:10:19]} {[%emt 00:00:15]} Ng5 {[%clk
00:03:01]} {[%emt 00:02:09]} 40. Nxg5+ {[%clk 01:09:20]} {[%emt 00:01:30]} hxg5
{[%clk 00:03:23]} {[%emt 00:00:08]} 41. Kf3 {[%clk 01:05:38]} {[%emt 00:04:12]}
Re6 {[%clk 00:03:06]} {[%emt 00:00:47]} 42. Rd1 {[%clk 01:06:05]} {[%emt
00:00:02]} Re7 {[%clk 00:03:23]} {[%emt 00:00:13]} 43. Rh1 {[%clk 01:05:54]}
{[%emt 00:00:41]} Kg7 {[%clk 00:03:47]} {[%emt 00:00:07]} 44. Rd1 {[%clk
01:06:09]} {[%emt 00:00:15]} Kf7 {[%clk 00:04:16]} {[%emt 00:00:02]} 45. a4
{[%clk 01:06:30]} {[%emt 00:00:09]} Ke6 {[%clk 00:02:09]} {[%emt 00:02:37]} 46.
Rh1 {[%clk 01:06:10]} {[%emt 00:00:48]} a5 {[%clk 00:01:26]} {[%emt 00:01:14]}
47. bxa5 {[%clk 01:03:59]} {[%emt 00:02:41]} Kd6 {[%clk 00:01:55]} {[%emt
00:00:01]} 48. Rb1 {[%clk 01:04:02]} {[%emt 00:00:27]} Kc5 {[%clk 00:01:37]}
{[%emt 00:00:48]} 49. Rb6 {[%clk 01:04:29]} {[%emt 00:00:03]} Rc7 {[%clk
00:01:44]} {[%emt 00:00:23]} 50. Ke3 {[%clk 01:03:49]} {[%emt 00:01:09]} Rd7
{[%clk 00:01:24]} {[%emt 00:00:51]} 51. Rb1 {[%clk 01:03:41]} {[%emt 00:00:37]}
Re7 {[%clk 00:00:33]} {[%emt 00:01:21]} 52. Kd3 {[%clk 01:03:24]} {[%emt
00:00:48]} Rd7+ {[%clk 00:00:57]} {[%emt 00:00:06]} 53. Kc3 {[%clk 01:03:37]}
{[%emt 00:00:16]} Re7 {[%clk 00:01:22]} {[%emt 00:00:06]} 54. Re1 {[%clk
01:03:59]} {[%emt 00:00:08]} Re5 {[%clk 00:01:21]} {[%emt 00:00:31]} 55. Rb1
{[%clk 01:02:06]} {[%emt 00:02:22]} Re7 {[%clk 00:01:21]} {[%emt 00:00:30]} 56.
Rb2 {[%clk 01:02:13]} {[%emt 00:00:23]} Rxe4 {[%clk 00:00:31]} {[%emt
00:01:21]} 57. Rxb7 {[%clk 01:02:38]} {[%emt 00:00:05]} Rxc4+ {[%clk 00:00:43]}
{[%emt 00:00:18]} 58. Kb3 {[%emt 00:00:02]} Re4 {[%clk 00:00:35]} {[%emt
00:00:37]} 59. a6 {[%clk 01:03:23]} {[%emt 00:00:14]} Re3+ {[%clk 00:01:02]}
{[%emt 00:00:02]} 60. Ka2 {[%clk 01:03:12]} {[%emt 00:00:41]} Re4 {[%clk
00:00:55]} {[%emt 00:00:37]} 61. Ka3 {[%clk 01:03:36]} {[%emt 00:00:06]} Re3+
{[%clk 00:01:03]} {[%emt 00:00:22]} 62. Ka2 {[%clk 01:02:57]} {[%emt 00:01:09]}
Re4 {[%clk 00:01:24]} {[%emt 00:00:09]} 63. Kb3 {[%clk 01:03:16]} {[%emt
00:00:11]} Re3+ {[%clk 00:01:48]} {[%emt 00:00:06]} 64. Kb2 {[%clk 01:02:34]}
{[%emt 00:01:12]} Re4 {[%clk 00:02:11]} {[%emt 00:00:07]} 65. Kb3 {[%clk
01:02:46]} {[%emt 00:00:18]} Re3+ {[%clk 00:02:35]} {[%emt 00:00:06]} 66. Kb2
{[%clk 01:03:14]} {[%emt 00:00:02]} Re4 {[%clk 00:03:00]} {[%emt 00:00:04]} 67.
Kb3 {[%clk 01:03:43]} {[%emt 00:00:01]} Rf4 {[%emt 00:00:13]} 1/2-1/2

[Event "9e Open International de Porticcio"]
[Site "Porticcio, France"]
[Date "2024.07.05"]
[Round "9.9"]
[White "Daulet, Alikhan"]
[Black "Coriat, Caroline"]
[Result "0-1"]
[TimeControl "1h30+30s/move"]
[WhiteElo "1877"]
[BlackElo "1852"]

1. d4 {[%clk 01:30:57]} {[%emt 00:00:02]} d5 {[%clk 01:29:51]} {[%emt
00:01:10]} 2. Nc3 {[%clk 01:31:06]} {[%emt 00:00:21]} Nf6 {[%clk 01:26:43]}
{[%emt 00:03:39]} 3. Bf4 {[%clk 01:31:29]} {[%emt 00:00:06]} c6 {[%clk
01:24:25]} {[%emt 00:02:48]} 4. e3 {[%clk 01:30:08]} {[%emt 00:01:51]} Bg4
{[%clk 01:22:50]} {[%emt 00:02:05]} 5. f3 {[%clk 01:29:53]} {[%emt 00:00:44]}
Bf5 {[%clk 01:21:42]} {[%emt 00:01:38]} 6. g4 {[%clk 01:30:10]} {[%emt
00:00:13]} Bg6 {[%clk 01:20:13]} {[%emt 00:02:00]} 7. h4 {[%clk 01:30:19]}
{[%emt 00:00:21]} h5 {[%clk 01:18:57]} {[%emt 00:01:46]} 8. g5 {[%clk
01:30:28]} {[%emt 00:00:21]} Nfd7 {[%clk 01:16:30]} {[%emt 00:02:57]} 9. e4
{[%clk 01:29:01]} {[%emt 00:01:57]} e6 {[%clk 01:14:22]} {[%emt 00:02:38]} 10.
Bd3 {[%clk 01:28:10]} {[%emt 00:01:20]} Bb4 {[%clk 01:08:12]} {[%emt 00:06:41]}
11. exd5 {[%clk 01:26:15]} {[%emt 00:02:25]} exd5 {[%clk 00:56:31]} {[%emt
00:12:11]} 12. Bxg6 {[%clk 01:26:38]} {[%emt 00:00:06]} fxg6 {[%clk 00:56:56]}
{[%emt 00:00:05]} 13. Qd3 {[%clk 01:26:46]} {[%emt 00:00:22]} Qe7+ {[%clk
00:51:53]} {[%emt 00:05:34]} 14. Kf2 {[%clk 01:25:08]} {[%emt 00:02:07]} O-O
{[%clk 00:51:15]} {[%emt 00:01:08]} 15. Bxb8 {[%clk 01:24:54]} {[%emt
00:00:44]} Raxb8 {[%clk 00:51:33]} {[%emt 00:00:13]} 16. Qxg6 {[%clk 01:25:05]}
{[%emt 00:00:19]} Rbe8 {[%clk 00:49:15]} {[%emt 00:02:48]} 17. Qd3 {[%clk
01:24:54]} {[%emt 00:00:40]} Rf4 {[%clk 00:33:52]} {[%emt 00:15:53]} 18. Nge2
{[%clk 01:23:22]} {[%emt 00:02:02]} Rf7 {[%clk 00:33:01]} {[%emt 00:01:21]} 19.
Raf1 {[%clk 01:19:24]} {[%emt 00:04:28]} Bd6 {[%clk 00:29:33]} {[%emt
00:03:58]} 20. Ke1 {[%clk 01:17:10]} {[%emt 00:02:44]} Qe3 {[%clk 00:26:00]}
{[%emt 00:04:03]} 21. Qxe3 {[%clk 01:16:21]} {[%emt 00:01:18]} Rxe3 {[%clk
00:24:52]} {[%emt 00:01:39]} 22. Rh3 {[%clk 01:16:32]} {[%emt 00:00:18]} Bb4
{[%clk 00:16:41]} {[%emt 00:08:41]} 23. Kf2 {[%clk 01:14:39]} {[%emt 00:02:23]}
Rfe7 {[%clk 00:16:02]} {[%emt 00:01:10]} 24. Rd1 {[%clk 01:13:57]} {[%emt
00:01:12]} Nb6 {[%clk 00:13:00]} {[%emt 00:03:32]} 25. Rd3 {[%clk 01:12:55]}
{[%emt 00:01:31]} Nc4 {[%clk 00:12:46]} {[%emt 00:00:45]} 26. b3 {[%clk
01:12:56]} {[%emt 00:00:29]} Rxd3 {[%clk 00:12:54]} {[%emt 00:00:22]} 27. cxd3
{[%clk 01:13:20]} {[%emt 00:00:06]} Ne3 {[%clk 00:10:18]} {[%emt 00:03:06]} 28.
Nb1 {[%clk 01:07:27]} {[%emt 00:06:23]} Nc2 {[%clk 00:09:58]} {[%emt 00:00:50]}
29. f4 {[%clk 01:04:39]} {[%emt 00:03:18]} g6 {[%clk 00:08:18]} {[%emt
00:02:11]} 30. a3 {[%clk 01:04:29]} {[%emt 00:00:40]} Be1+ {[%clk 00:07:04]}
{[%emt 00:01:43]} 31. Kf1 {[%clk 01:04:46]} {[%emt 00:00:13]} Rf7 {[%clk
00:06:46]} {[%emt 00:00:49]} 32. Rh2 {[%clk 01:02:53]} {[%emt 00:02:22]} Kf8
{[%clk 00:06:16]} {[%emt 00:01:00]} 33. a4 {[%clk 01:02:34]} {[%emt 00:00:49]}
Bb4 {[%clk 00:06:25]} {[%emt 00:00:21]} 34. Rf2 {[%clk 01:02:52]} {[%emt
00:00:12]} Ne3+ {[%clk 00:05:15]} {[%emt 00:01:41]} 35. Kg1 {[%clk 01:03:21]}
{[%emt 00:00:01]} Nf5 {[%clk 00:05:02]} {[%emt 00:00:42]} 36. Kh2 {[%clk
01:01:23]} {[%emt 00:02:27]} Nxh4 {[%clk 00:05:15]} {[%emt 00:00:18]} 37. Nbc3
{[%clk 01:00:53]} {[%emt 00:01:01]} Nf5 {[%clk 00:05:22]} {[%emt 00:00:23]} 38.
Nd1 {[%clk 01:00:40]} {[%emt 00:00:42]} Re7 {[%clk 00:04:55]} {[%emt 00:00:58]}
39. Ng1 {[%clk 00:58:37]} {[%emt 00:02:33]} Re1 {[%clk 00:04:20]} {[%emt
00:01:04]} 40. Nb2 {[%clk 00:58:49]} {[%emt 00:00:18]} Nxd4 {[%clk 00:04:12]}
{[%emt 00:00:39]} 41. f5 {[%clk 00:59:18]} gxf5 {[%clk 00:03:57]} {[%emt
00:00:45]} 42. Nh3 {[%clk 00:59:38]} {[%emt 00:00:10]} Re2 {[%clk 00:03:56]}
{[%emt 00:00:31]} 43. Rxe2 {[%clk 01:00:08]} Nxe2 {[%clk 00:04:25]} {[%emt
00:00:02]} 44. Kg2 {[%clk 01:00:14]} {[%emt 00:00:23]} Bd2 {[%clk 00:04:15]}
{[%emt 00:00:41]} 45. Kf2 {[%clk 01:00:07]} {[%emt 00:00:37]} Nf4 {[%clk
00:04:15]} {[%emt 00:00:30]} 46. Ng1 {[%clk 01:00:32]} {[%emt 00:00:04]} Bc1
{[%clk 00:04:28]} {[%emt 00:00:17]} 47. Nd1 {[%clk 01:00:54]} {[%emt 00:00:08]}
Nxd3+ {[%clk 00:04:43]} {[%emt 00:00:15]} 48. Ke2 {[%clk 01:01:19]} {[%emt
00:00:04]} Nc5 {[%clk 00:04:41]} {[%emt 00:00:34]} 49. Nf3 {[%clk 01:01:41]}
{[%emt 00:00:07]} Nxb3 {[%clk 00:04:31]} {[%emt 00:00:40]} 50. Nf2 {[%clk
01:02:02]} {[%emt 00:00:08]} Nc5 {[%clk 00:04:18]} {[%emt 00:00:45]} 51. a5
{[%clk 01:02:12]} {[%emt 00:00:20]} Ne4 {[%clk 00:04:24]} {[%emt 00:00:24]} 52.
Nh3 {[%clk 01:02:40]} {[%emt 00:00:01]} b6 {[%clk 00:03:42]} {[%emt 00:01:12]}
53. a6 {[%clk 01:02:59]} {[%emt 00:00:12]} Nc5 {[%clk 00:03:56]} {[%emt
00:00:15]} 54. Nd4 {[%clk 01:03:26]} {[%emt 00:00:03]} Nxa6 {[%clk 00:03:58]}
{[%emt 00:00:28]} 55. Nxc6 {[%clk 01:03:55]} Nc5 {[%emt 00:01:04]} 56. Nxa7
{[%clk 01:04:06]} {[%emt 00:00:01]} Ne4 {[%clk 00:04:03]} {[%emt 00:00:09]} 57.
g6 {[%clk 01:04:31]} {[%emt 00:00:05]} Kg7 {[%clk 00:04:18]} {[%emt 00:00:15]}
58. Nc8 {[%clk 01:05:00]} {[%emt 00:00:01]} Kxg6 {[%clk 00:04:19]} {[%emt
00:00:29]} 59. Ne7+ {[%clk 01:05:19]} {[%emt 00:00:11]} Kf7 {[%clk 00:04:01]}
{[%emt 00:00:48]} 60. Nxd5 {[%clk 01:05:31]} {[%emt 00:00:18]} b5 {[%clk
00:04:09]} {[%emt 00:00:22]} 61. Kd3 {[%clk 01:05:58]} {[%emt 00:00:03]} Bd2
{[%clk 00:03:41]} {[%emt 00:00:59]} 62. Kd4 {[%clk 01:05:40]} {[%emt 00:00:48]}
b4 {[%clk 00:03:54]} {[%emt 00:00:17]} 63. Nxb4 {[%clk 01:03:24]} {[%emt
00:02:46]} Bxb4 {[%clk 00:04:14]} {[%emt 00:00:09]} 64. Ke5 {[%clk 01:03:51]}
{[%emt 00:00:03]} Ng3 {[%clk 00:04:16]} {[%emt 00:00:28]} 65. Kf4 {[%clk
01:03:55]} {[%emt 00:00:26]} h4 {[%clk 00:03:25]} {[%emt 00:01:21]} 66. Kf3
{[%clk 01:03:18]} {[%emt 00:01:06]} Bd2 {[%clk 00:02:54]} {[%emt 00:01:02]} 67.
Nf2 {[%clk 01:03:39]} {[%emt 00:00:09]} Be1 {[%clk 00:02:39]} {[%emt 00:00:45]}
68. Nh3 {[%clk 01:03:49]} {[%emt 00:00:19]} Kf6 {[%clk 00:02:52]} {[%emt
00:00:18]} 69. Kg2 {[%clk 01:04:12]} {[%emt 00:00:06]} Bd2 {[%clk 00:02:51]}
{[%emt 00:00:32]} 70. Ng1 {[%clk 01:04:37]} {[%emt 00:00:05]} Nh5 {[%clk
00:02:22]} {[%emt 00:00:59]} 71. Nf3 {[%clk 01:04:58]} {[%emt 00:00:08]} Bg5
{[%clk 00:02:35]} {[%emt 00:00:17]} 72. Kh3 {[%clk 01:05:05]} {[%emt 00:00:24]}
Nf4+ {[%clk 00:02:49]} {[%emt 00:00:16]} 73. Kh2 {[%clk 01:05:34]} Ng6 {[%clk
00:02:19]} {[%emt 00:01:02]} 74. Kh3 {[%clk 01:05:48]} {[%emt 00:00:15]} Ne5
{[%clk 00:02:38]} {[%emt 00:00:12]} 75. Ng1 {[%clk 01:05:56]} {[%emt 00:00:22]}
f4 {[%clk 00:02:50]} {[%emt 00:00:18]} 76. Kg2 {[%clk 01:05:54]} {[%emt
00:00:30]} Kf5 {[%clk 00:02:56]} {[%emt 00:00:26]} 77. Nh3 {[%clk 01:06:15]}
{[%emt 00:00:08]} f3+ {[%clk 00:02:45]} {[%emt 00:00:42]} 78. Kh1 {[%clk
01:06:45]} Kg4 {[%clk 00:03:01]} {[%emt 00:00:15]} 79. Nf2+ {[%clk 01:07:10]}
{[%emt 00:00:04]} Kf4 {[%clk 00:02:32]} {[%emt 00:00:59]} 80. Nh3+ {[%clk
01:06:23]} {[%emt 00:01:15]} Ke3 {[%clk 00:02:15]} {[%emt 00:00:49]} 81. Kg1
{[%clk 01:06:30]} {[%emt 00:00:24]} Ke2 {[%clk 00:02:29]} {[%emt 00:00:16]} 82.
Nxg5 {[%clk 01:04:55]} {[%emt 00:02:05]} f2+ {[%clk 00:02:53]} {[%emt
00:00:06]} 83. Kh2 {[%clk 01:05:21]} {[%emt 00:00:03]} Nf3 {[%clk 00:02:36]}
{[%emt 00:00:47]} 84. Nxf3 {[%clk 01:05:18]} {[%emt 00:00:33]} Kxf3 {[%emt
00:00:44]} 0-1

[Event "9e Open International de Porticcio"]
[Site "Porticcio, France"]
[Date "2024.07.05"]
[Round "9.11"]
[White "Ter Sarkissoff, Jean-Jacques"]
[Black "Charni, Ilyes"]
[Result "0-1"]
[TimeControl "1h30+30s/move"]
[WhiteElo "1887"]
[BlackElo "1858"]

1. e4 {[%clk 01:30:41]} {[%emt 00:00:19]} c5 {[%clk 01:28:33]} {[%emt
00:02:28]} 2. Nc3 {[%clk 01:31:02]} {[%emt 00:00:08]} Nc6 {[%clk 01:28:19]}
{[%emt 00:00:44]} 3. g3 {[%clk 01:31:12]} {[%emt 00:00:20]} e6 {[%clk
01:27:26]} {[%emt 00:01:23]} 4. Bg2 {[%clk 01:31:13]} {[%emt 00:00:27]} Nf6
{[%clk 01:26:14]} {[%emt 00:01:43]} 5. d3 {[%clk 01:18:59]} {[%emt 00:12:44]}
Be7 {[%clk 01:23:33]} {[%emt 00:03:12]} 6. f4 {[%clk 01:13:48]} {[%emt
00:05:40]} d6 {[%clk 01:12:30]} {[%emt 00:11:34]} 7. Nh3 {[%clk 01:11:24]}
{[%emt 00:02:53]} O-O {[%clk 01:05:36]} {[%emt 00:07:25]} 8. O-O {[%clk
01:10:00]} {[%emt 00:01:52]} d5 {[%clk 00:49:54]} {[%emt 00:16:12]} 9. e5
{[%clk 00:41:06]} {[%emt 00:29:24]} Nd7 {[%clk 00:50:06]} {[%emt 00:00:18]} 10.
Bd2 {[%clk 00:24:12]} {[%emt 00:17:24]} Rb8 {[%clk 00:49:51]} {[%emt 00:00:46]}
11. Ne2 {[%clk 00:21:35]} {[%emt 00:03:06]} b5 {[%clk 00:40:42]} {[%emt
00:09:40]} 12. c3 {[%clk 00:21:56]} {[%emt 00:00:10]} Ba6 {[%clk 00:38:04]}
{[%emt 00:03:07]} 13. d4 {[%clk 00:21:12]} {[%emt 00:01:14]} b4 {[%clk
00:36:57]} {[%emt 00:01:38]} 14. Be3 {[%clk 00:19:55]} {[%emt 00:01:46]} bxc3
{[%clk 00:35:25]} {[%emt 00:02:04]} 15. bxc3 {[%clk 00:20:12]} {[%emt
00:00:12]} Rb2 {[%clk 00:32:53]} {[%emt 00:03:01]} 16. Rf2 {[%clk 00:18:43]}
{[%emt 00:01:58]} Qa5 {[%clk 00:28:42]} {[%emt 00:04:41]} 17. Bd2 {[%clk
00:10:58]} {[%emt 00:08:14]} Rxa2 {[%clk 00:20:11]} {[%emt 00:09:03]} 18. Rxa2
{[%clk 00:10:58]} {[%emt 00:00:30]} Qxa2 {[%clk 00:19:51]} {[%emt 00:00:50]} 19.
Nc1 {[%clk 00:08:57]} {[%emt 00:02:30]} Qa3 {[%clk 00:15:30]} {[%emt 00:04:52]}
20. Be1 {[%clk 00:07:53]} {[%emt 00:01:33]} Bc4 {[%clk 00:12:15]} {[%emt
00:03:46]} 21. Bf1 {[%clk 00:08:01]} {[%emt 00:00:20]} Qa6 {[%clk 00:11:03]}
{[%emt 00:01:43]} 22. Ra2 {[%clk 00:03:08]} {[%emt 00:05:22]} Qb5 {[%clk
00:10:50]} {[%emt 00:00:39]} 23. Bxc4 {[%clk 00:03:14]} {[%emt 00:00:29]} Qxc4
{[%clk 00:11:02]} {[%emt 00:00:18]} 24. Qa4 {[%clk 00:03:35]} {[%emt 00:00:09]}
Qxa4 {[%clk 00:09:35]} {[%emt 00:01:58]} 25. Rxa4 {[%clk 00:03:56]} {[%emt
00:00:08]} Rb8 {[%clk 00:04:09]} {[%emt 00:05:56]} 26. Kf1 {[%clk 00:03:14]}
{[%emt 00:01:12]} Nb6 {[%clk 00:02:32]} {[%emt 00:02:08]} 27. Ra6 {[%clk
00:02:57]} {[%emt 00:00:45]} Ra8 {[%clk 00:01:29]} {[%emt 00:01:33]} 28. dxc5
{[%clk 00:02:37]} {[%emt 00:00:52]} Bxc5 {[%clk 00:01:43]} {[%emt 00:00:17]} 29.
Nb3 {[%clk 00:02:42]} {[%emt 00:00:24]} Be7 {[%clk 00:01:38]} {[%emt 00:00:36]}
30. Bf2 {[%clk 00:02:47]} {[%emt 00:00:24]} Rb8 {[%clk 00:01:26]} {[%emt
00:00:42]} 31. Na5 {[%clk 00:01:54]} {[%emt 00:01:23]} Nxa5 {[%clk 00:01:45]}
{[%emt 00:00:11]} 32. Rxa5 {[%clk 00:02:15]} {[%emt 00:00:08]} Rb7 {[%clk
00:01:19]} {[%emt 00:00:57]} 33. Rb5 {[%clk 00:01:48]} {[%emt 00:00:56]} Kf8
{[%clk 00:01:24]} {[%emt 00:00:27]} 34. f5 {[%clk 00:01:17]} {[%emt 00:01:00]}
Ke8 {[%clk 00:00:48]} {[%emt 00:01:07]} 35. Nf4 {[%clk 00:00:57]} {[%emt
00:00:48]} Kd7 {[%clk 00:00:56]} {[%emt 00:00:23]} 36. Bxb6 {[%clk 00:00:46]}
{[%emt 00:00:41]} Rxb6 {[%clk 00:00:45]} {[%emt 00:00:41]} 37. Rxb6 {[%clk
00:00:57]} {[%emt 00:00:18]} axb6 {[%clk 00:01:12]} {[%emt 00:00:03]} 38. fxe6+
{[%clk 00:00:42]} {[%emt 00:00:43]} fxe6 {[%clk 00:01:38]} {[%emt 00:00:06]} 39.
Ke2 {[%clk 00:00:42]} {[%emt 00:00:30]} Bg5 {[%clk 00:01:38]} {[%emt 00:00:29]}
40. Nh3 {[%clk 00:00:34]} {[%emt 00:00:39]} Bd8 {[%clk 00:01:46]} {[%emt
00:00:22]} 41. Kd3 {[%clk 00:00:33]} {[%emt 00:00:31]} Ke7 {[%clk 00:00:44]}
{[%emt 00:01:32]} 42. Ng5 {[%clk 00:00:39]} {[%emt 00:00:22]} h6 {[%clk
00:00:41]} {[%emt 00:00:34]} 43. Nf3 {[%clk 00:00:57]} {[%emt 00:00:11]} Bc7
{[%clk 00:00:41]} {[%emt 00:00:31]} 44. g4 {[%clk 00:00:49]} {[%emt 00:00:37]}
Kf7 {[%clk 00:00:42]} {[%emt 00:00:30]} 45. h4 {[%clk 00:00:57]} {[%emt
00:00:21]} g6 {[%clk 00:00:40]} {[%emt 00:00:33]} 46. h5 {[%clk 00:00:54]}
{[%emt 00:00:32]} g5 {[%clk 00:00:34]} {[%emt 00:00:37]} 47. Kd4 {[%clk
00:00:32]} {[%emt 00:00:53]} Bd8 {[%clk 00:00:34]} {[%emt 00:00:30]} 48. Nd2
{[%clk 00:00:36]} {[%emt 00:00:25]} Ke7 {[%clk 00:00:35]} {[%emt 00:00:28]} 49.
c4 {[%clk 00:00:47]} {[%emt 00:00:19]} dxc4 {[%emt 00:00:26]} 50. Nxc4 {[%clk
00:00:51]} {[%emt 00:00:25]} Kd7 {[%clk 00:00:35]} {[%emt 00:00:35]} 51. Nd6
{[%clk 00:00:52]} {[%emt 00:00:29]} Be7 {[%clk 00:00:37]} {[%emt 00:00:28]} 52.
Ne4 {[%clk 00:00:40]} {[%emt 00:00:42]} Kc6 {[%clk 00:00:32]} {[%emt 00:00:36]}
53. Nd2 {[%clk 00:00:32]} {[%emt 00:00:39]} b5 {[%clk 00:00:47]} {[%emt
00:00:15]} 54. Nb3 {[%clk 00:00:33]} {[%emt 00:00:29]} b4 {[%clk 00:00:48]}
{[%emt 00:00:29]} 55. Kc4 {[%clk 00:00:43]} {[%emt 00:00:19]} Bf8 {[%clk
00:00:36]} {[%emt 00:00:43]} 56. Nd4+ {[%clk 00:00:52]} {[%emt 00:00:21]} Kd7
{[%clk 00:01:05]} {[%emt 00:00:02]} 57. Nb3 {[%clk 00:00:37]} {[%emt 00:00:44]}
Be7 {[%clk 00:00:41]} {[%emt 00:00:53]} 58. Nd4 {[%clk 00:00:48]} {[%emt
00:00:20]} Bf8 {[%clk 00:00:41]} {[%emt 00:00:31]} 59. Nb3 {[%clk 00:00:55]}
{[%emt 00:00:23]} Bg7 {[%clk 00:00:33]} {[%emt 00:00:38]} 60. Nc5+ {[%clk
00:00:44]} {[%emt 00:00:40]} Kc6 {[%clk 00:00:32]} {[%emt 00:00:32]} 61. Nxe6
{[%clk 00:00:41]} {[%emt 00:00:33]} Bxe5 {[%clk 00:00:37]} {[%emt 00:00:26]} 62.
Kxb4 {[%clk 00:00:31]} {[%emt 00:00:40]} Kd5 {[%clk 00:00:47]} {[%emt
00:00:17]} 63. Nf8 {[%clk 00:00:31]} {[%emt 00:00:32]} Bd6+ {[%clk 00:01:16]}
0-1